Cogmind - Beta 15 @@@ ROGUE MODE // 2025.07.15 @ 17:53:44 Player: Skysub Result: Destroyed by 2P-WBV(R) with Subdweller Laser Performance ------------- Evolutions (0) 0 Regions Visited (2) 400 Robots Destroyed (17) 85 Value Destroyed (361) 361 Prototype IDs (0) 0 Alien Tech Used (0) 0 Bonus (0) 0 TOTAL SCORE: 846 Bonus ------- None Cogmind --------- Core Integrity 0/250 Matter 202/300 Energy 100/100 System Corruption 0% Temperature Cool (6) Movement Treading (240) Ox1 Location -10/Subcaves Parts ------- > --- POWER (1) -------- (None) > --- PROPULSION (2) --- Light Treads > --- UTILITY (2) ------ Large Storage Unit > --- WEAPON (2) ------- Light Assault Rifle > --- INVENTORY (15) --- Wheel Subdweller Monowheel Subdweller Monowheel Small Storage Unit Structural Scanner Medium Laser Plasma Cutter Maul Peak State ------------ > --- POWER ------------ Light Ion Engine > --- PROPULSION ------- Light Treads Light Treads > --- UTILITY ---------- Large Storage Unit Structural Scanner > --- WEAPON ----------- Assault Rifle Maul > --- INVENTORY -------- Wheel Subdweller Monowheel Subdweller Monowheel Small Storage Unit Light Armor Plating Medium Laser Small Laser Light Assault Rifle Subdweller Machine Gun Grenade Launcher Plasma Cutter [Rating: 9] Favorites ----------- Power Ion Engine Engine Ion Engine Propulsion Light Treads Treads Light Treads Utility Large Storage Unit Device Structural Scanner Storage Large Storage Unit Protection Light Armor Plating Weapon Small Laser Energy Gun Small Laser Ballistic Gun Light Assault Rifle Launcher Grenade Launcher Impact Weapon Maul Build | -11 -10 -10 ------- Run | Yrd Mat Sub Slots Evolved . | . . . Power . | . . . Propulsion . | . . . Utility . | . . . Weapon . | . . . Parts Attached 16 | 6 2 8 Power 2 | 1 . 1 Engine 2 | 1 . 1 Core . | . . . Reactor . | . . . Propulsion 3 | 2 . 1 Treads 3 | 2 . 1 Leg . | . . . Wheel . | . . . Hover . | . . . Flight . | . . . Utility 4 | 1 1 2 Device 1 | . . 1 Storage 2 | 1 1 . Processor . | . . . Hackware . | . . . Protection 1 | . . 1 Artifact . | . . . Weapon 7 | 2 1 4 Energy Gun 1 | 1 . . Energy Cannon . | . . . Ballistic Gun 4 | 1 1 2 Ballistic Cannon . | . . . Launcher 1 | . . 1 Special Weapon . | . . . Impact Weapon 1 | . . 1 Slashing Weapon . | . . . Piercing Weapon . | . . . Special Melee Weapon . | . . . Unidentified Prototypes . | . . . Parts Lost 10 | . 2 8 Power 2 | . 1 1 Propulsion 2 | . . 2 Utility 1 | . . 1 Weapon 5 | . 1 4 Highest Loss Streak 7 | . 2 7 To Critical Strikes . | . . . Average Backups 8 | 2 8 10 Power . | . 1 . Propulsion 1 | . 1 2 Utility 1 | . 1 2 Weapon 3 | . 3 4 Tool/Special . | . . . Unused Backups 7 | . 2 5 Power . | . . . Propulsion 3 | . . 3 Utility . | . . . Weapon 3 | . 2 1 Tool/Special 1 | . . 1 Average Slot Usage (%) 86 | . 84 95 Engine 11 | . 11 12 Treads 27 | . 28 26 Device 1 | . . 7 Storage 15 | . 15 14 Protection 1 | . . 5 Energy Gun 11 | . 13 3 Ballistic Gun 15 | . 14 20 Peak Build Rating 9 | 6 7 9 Average Rating 6 | 5 6 7 On Entrance 4 | . 6 6 Naked Turns . | . . . Heaviest Build 32 | 12 32 31 Greatest Support 40 | 40 40 40 Greatest Overweight (x) . | . . . Average Overweight (x) . | . . . Largest Inventory Capacity 15 | 8 15 15 Average Capacity 14 | 7 14 15 Most Carried 11 | 4 11 11 Average Carried 8 | 2 8 10 Final Capacity 15 | 8 15 15 Final Carried 11 | 4 11 8 Class Distribution -------------------- 100% | Mutant Dominant Class ---------------- Mutant | -10/Materials Mutant | -10/Subcaves Resources | -11 -10 -10 ----------- Run | Yrd Mat Sub Matter Collected 436 | 196 145 95 Remotely . | . . . Salvage Created 446 | 19 296 131 Parts 28 | 2 21 5 Haulers Intercepted 1 | . 1 . Recyclers Shooed 1 | 1 . . Parts Field Recycled . | . . . Retrieved Matter . | . . . Parts Self-Destructed 7 | . . 7 Prevented . | . . . Kills | -11 -10 -10 ------- Run | Yrd Mat Sub Combat Hostiles Destroyed 13 | . 9 4 Guns 12 | . 9 3 AOE 1 | . . 1 Classes Destroyed 7 | 1 5 1 Worker 1 | . 1 . Tunneler 1 | 1 . . Hauler 1 | . 1 . Watcher 1 | . 1 . Swarmer 6 | . 6 . Grunt 3 | . 3 . Subdweller 4 | . . 4 Best Kill Streak 5 | 1 5 2 Combat Bots Only 4 | . 4 2 Max Kills in Single Turn 2 | 1 2 1 Gunslinging 1 | . 1 . Exploded 1 | . . 1 Melee . | . . . Uniques/NPCs Destroyed . | . . . Combat | -11 -10 -10 -------- Run | Yrd Mat Sub Hostile Shots Fired 118 | . 59 59 Missed 33 | . 16 17 Hits 85 | . 43 42 Projectile 85 | . 43 42 AOE 1 | . . 1 Critical Strikes 1 | . 1 . Damage Taken 1439 | . 458 981 Core 264 | . 65 199 Absorbed by Shields . | . . . Core Remaining (%) 100 | 100 . . Volleys Fired 71 | 7 42 22 Largest 2 | 2 2 2 Hottest 70 | 60 60 70 Shots Fired 134 | 14 82 38 Gun 129 | 14 82 33 Cannon . | . . . Launcher 5 | . . 5 Special . | . . . Kinetic 76 | 7 44 25 Thermal 53 | 7 38 8 Explosive 5 | . . 5 Electromagnetic . | . . . Robot Hit Streak 20 | 3 10 20 Robot Miss Streak 5 | 4 5 1 Penetration Max . | . . . Secondary Targets 2 | . 2 . Max Gunslinging Chain 1 | . 1 . Shots Hit Robots 92 | 5 52 35 Core Hits 32 | 1 20 11 Critical Kills . | . . . Critical Parts Destroyed . | . . . Critical Strikes 1 | . . 1 Destroy 1 | . . 1 Melee Attacks 3 | . . 3 Impact 3 | . . 3 Slashing . | . . . Piercing . | . . . Sneak Attacks . | . . . Combat Hostiles . | . . . Follow-up Attacks . | . . . Damage Inflicted 1280 | 68 517 695 Guns 928 | 68 515 345 Cannons . | . . . Explosions 296 | . . 296 Melee 54 | . . 54 Ramming 2 | . 2 . Kinetic 596 | 24 304 268 Thermal 332 | 44 211 77 Explosive 296 | . . 296 Electromagnetic . | . . . Impact 54 | . . 54 Slashing . | . . . Piercing . | . . . Highest Corruption . | . . . Average Corruption . | . . . Corruption Purged . | . . . Corruption Blocked . | . . . Overload Shots . | . . . Overflow Damage . | . . . Projectiles . | . . . Explosions . | . . . Melee . | . . . Knockbacks . | . . . Impact . | . . . Kinetic . | . . . Secondary . | . . . Self-Inflicted Damage 8 | . . 8 Shots 1 | . . 1 Rammed 1 | . 1 . Targets Rammed 1 | . 1 . Kicked . | . . . Crushed . | . . . Highest Temperature 239 | 40 239 . Average Temperature 74 | 19 84 . Received Heat Transfer 444 | . 177 267 Siege Activations . | . . . Martial Activations . | . . . Shielding Activations . | . . . Robots Disrupted . | . . . Combat Hostiles . | . . . Robots Corrupted . | . . . Combat Hostiles . | . . . Parts Fried . | . . . Impact Corruptions . | . . . Robots Melted . | . . . Combat Hostiles . | . . . Parts Melted 2 | . 1 1 Heat Transferred 750 | 100 475 175 Parts Sabotaged . | . . . Parts Stolen . | . . . Parts Stripped . | . . . Power Chain Reactions . | . . . Alert | -11 -10 -10 ------- Run | Yrd Mat Sub Maximum Alert Level . | . . . Low Security (%) 100 | 100 100 . Level 1 . | . . . Level 2 . | . . . Level 3 . | . . . Level 4 . | . . . Level 5 . | . . . High Security . | . . . Max Security . | . . . Peak Influence 106 | 5 106 . Initial . | . . . Average 26 | . 29 . Influence Increases 298 | 5 293 . Destroy 0b10 Robot/C 180 | . 180 . Destroy 0b10 Robot/NC 20 | 5 15 . Destroy Leader 44 | . 44 . Successful Hack 24 | . 24 . Select Force Hacks 30 | . 30 . Influence Decreases 298 | 5 293 . Time Decay 201 | 5 196 . Lost Part 20 | . 20 . Purge Threat 77 | . 77 . Squads Dispatched 1 | . 1 . Investigation 1 | . 1 . Extermination . | . . . Reinforcement . | . . . Assault . | . . . Garrison . | . . . Intercept . | . . . Searches Triggered . | . . . Construction Impeded . | . . . Haulers Reinforced . | . . . Active Scanning Responses . | . . . Cargo Convoy Interrupts . | . . . Stealth | -11 -10 -10 --------- Run | Yrd Mat Sub Distress Signals . | . . . Communications Jammed . | . . . Distress Signals . | . . . Times Spotted 22 | . 17 5 Peak Tracking Total 4 | . 4 2 Tactical Retreats . | . . . Traps | -11 -10 -10 ------- Run | Yrd Mat Sub Traps Triggered 1 | . 1 . Indirectly . | . . . Trap Hack Attempts . | . . . Triggered . | . . . Disarmed . | . . . Reprogrammed . | . . . Reused . | . . . Traps Extracted . | . . . Installed . | . . . Triggered . | . . . Machines | -11 -10 -10 ---------- Run | Yrd Mat Sub Machines Disabled . | . . . Max in Single Turn . | . . . Machines Repaired . | . . . Machines Dismantled . | . . . Machines Sabotaged . | . . . Overloaded Fab Kills . | . . . Hacking | -11 -10 -10 --------- Run | Yrd Mat Sub Machines Accessed 7 | . 7 . Terminals 5 | . 5 . Fabricators . | . . . Repair Stations . | . . . Recycling Units 2 | . 2 . Scanalyzers . | . . . Garrison Access . | . . . Total Hacks 24 | . 24 . Successful 15 | . 15 . Failed 9 | . 9 . Catastrophic 1 | . 1 . Database Lockouts . | . . . Manual 17 | . 17 . Terminals 18 | . 18 . Fabricators . | . . . Repair Stations . | . . . Recycling Units 6 | . 6 . Scanalyzers . | . . . Garrison Access . | . . . Terminal Hacks 4 | . 4 . Terminal Index 1 | . 1 . Recycling Unit Index 1 | . 1 . Unreport Threat 1 | . 1 . Zone Layout 1 | . 1 . Fabricator Hacks . | . . . Repair Station Hacks . | . . . Recycling Unit Hacks 3 | . 3 . Report Inventory 2 | . 2 . Retrieve Components 1 | . 1 . Scanalyzer . | . . . Garrison Access Hacks . | . . . Unauthorized Hacks 8 | . 8 . Terminals 7 | . 7 . Botnet 2 | . 2 . Skim 5 | . 5 . Fabricators . | . . . Repair Stations . | . . . Recycling Units 1 | . 1 . Tunnel 1 | . 1 . Scanalyzers . | . . . Garrison Access . | . . . Data Cores Recovered . | . . . Used . | . . . Hacking Detections 4 | . 4 . Full Trace Events 1 | . 1 . Feedback Events . | . . . Feedback Blocked . | . . . Robot Schematics Acquired . | . . . Robots Built . | . . . Authchips . | . . . Time . | . . . Total Robot Build Rating . | . . . Part Schematics Acquired . | . . . Parts Built . | . . . Authchips . | . . . Time . | . . . Total Part Build Rating . | . . . Parts Repaired . | . . . Time . | . . . Parts Recycled . | . . . Recycled Matter . | . . . Retrieved Matter . | . . . Retrieved Components 6 | . 6 . Parts Scanalyzed . | . . . Part Schematics Acquired . | . . . Parts Damaged . | . . . Bothacking | -11 -10 -10 ------------ Run | Yrd Mat Sub Used RIF Installer . | . . . Robots Hacked . | . . . Non-combat . | . . . Combat . | . . . Robot Hacks Applied . | . . . Relay Couplers Released . | . . . Fabnet Peak Effective % . | . . . Robots Rewired . | . . . Allies Hacked . | . . . Hacks Repelled . | . . . Allies | -11 -10 -10 -------- Run | Yrd Mat Sub Total Allies . | . . . Largest Group . | . . . Highest-Rated Group . | . . . Highest-Rated Ally . | . . . Total Orders . | . . . Ally Attacks . | . . . Total Damage . | . . . Kills . | . . . Allies Corrupted . | . . . Allies Melted . | . . . Intel | -11 -10 -10 ------- Run | Yrd Mat Sub Active Infowar (turns) 157 | . . 157 Structural 157 | . . 157 Robot Analysis Total . | . . . Derelict Logs Recovered . | . . . Drone Launches . | . . . Drone Recoveries . | . . . Exploration | -11 -10 -10 ------------- Run | Yrd Mat Sub Turns Passed 1361 | 130 929 302 Spaces Moved 700 | 73 494 133 Core 17 | 17 . . Treads 683 | 56 494 133 Legs . | . . . Wheels . | . . . Hover . | . . . Flight . | . . . Fastest Speed 50 | 50 160 160 Average Speed 157 | 134 160 160 Slowest Speed 160 | 160 160 160 Overloaded Moves . | . . . Propulsion Burnouts . | . . . Robots Hopped . | . . . Potential Cave-ins . | . . . Cave-ins Triggered . | . . . Exploration Rate (%) 35 | 4 93 10 Regions Visited 2 Branch Regions 1 Pre-discovered Areas 1 | . 1 . Known Exits Taken . | . . . Unknown Exits Taken 2 | 1 1 . Scrap Searched . | . . . Spaces Dug 1 | . . 1 Terrain Destroyed 28 | . . 28 Melee 1 | . . 1 Projectile . | . . . AOE 27 | . . 27 Terrain Rammed . | . . . Walls Destroyed . | . . . Machines Disabled . | . . . Actions | -11 -10 -10 --------- Run | Yrd Mat Sub Total 823 | 89 558 176 Wait 9 | . 7 2 Move 698 | 72 493 133 Hop . | . . . Pick Up 16 | 4 9 3 Fast Attach 7 | 6 1 . Attach 7 | . 1 6 Detach 1 | . 1 . Swap 8 | . 1 7 Drop 2 | . 2 . Fire 71 | 7 42 22 Melee 3 | . . 3 Ram . | . . . Kick . | . . . Crush 1 | . 1 . Escape Stasis . | . . . Rewire . | . . . Trap . | . . . Miscellaneous . | . . . Route ------- -11/Scrapyard -10/Materials (discovered 5 exits: [*Mat x2] / [*Min x2] / [*Sub]) -10/Subcaves (discovered 1 exit: [*Mat]) History --------- Turn | Location | Event 3 | -11/Scrapyard | Discovered new exit (range 16) 131 | -11/Scrapyard | Entered Materials 255 | -10/Materials | Discovered new exit (range 16) 314 | -10/Materials | Build established: Mutant 506 | -10/Materials | Discovered new exit (range 7) 711 | -10/Materials | Discovered new exit (range 15) 939 | -10/Materials | Discovered new exit (range 7) 1022 | -10/Materials | Learned 2 Mines zone layouts 1049 | -10/Materials | Discovered new exit (range 8) 1060 | -10/Materials | Loaded intel: 1 repair station location 1060 | -10/Materials | Entered Subcaves 1068 | -10/Subcaves | Ambushed by Subdwellers from Twisted Machinery 1107 | -10/Subcaves | Ambushed by Subdweller buried in earth 1119 | -10/Subcaves | Core integrity fell below 50% 1202 | -10/Subcaves | A swath of the cavern ceiling suddenly collapsed 1317 | -10/Subcaves | Ambushed by Subdwellers from Twisted Machinery 1326 | -10/Subcaves | Discovered new exit (range 12) 1353 | -10/Subcaves | Core integrity fell below 20% 1362 | -10/Subcaves | Destroyed by 2P-WBV(R) with Subdweller Laser Last Messages --------------- 01138_ The unstable cave ceiling collapses. 01141_ BE-JUC(R) destroyed. 01152_ Subatomizers dissect the Disposable Heat Sink, destroying it. 01153_ Acquired Sub. Monowheel. 01154_ Acquired 15 matter. 01168_ Acquired 38 matter. 01173_ The unstable cave ceiling collapses. A swath of the cavern ceiling suddenly collapses. 01317_ AC-4Y6(R) emerges from the Twisted Machinery. 01326_ EXIT=FOUND 01329_ Grenade Launcher destroyed. 01332_ Assault Rifle destroyed. 01333_ Lgt. Treads destroyed. 01341_ Sml. Laser destroyed. 01342_ Lgt. Armor Plating destroyed. 01348_ Lgt. Ion Engine destroyed. 01350_ AC-4Y6(R) suffers critical hit (Destroy). 01352_ Sub. Machine Gun destroyed. 01353_ Sub. Optics melted. 01353_ AC-4Y6(R) destroyed. Map ----- +----------------------------------------------------+ | ??????????????????????????????? # ##### ###?????? | | ????????????????????????##### ?## #### ##?????? | | ????????????????????????##### ?# ### ##?????? | | ????????????????????????## ???## # ######?????? | | ????????????????????????## ????### #######?????? | | ????????????????????????## ????# # ###?????????? | | ????????????????????????### ##??### ##??????????? | | ????????????????????????## ##?### ##??????????? | | ????????????????????????## ##### ###??????????? | | ????????????????????????### #### ###??????????? | | ????????????????????????### ### ##??????????? | | ????????????????????????## # ##??????????? | | ????????????????????????## ###??????????? | | ????????????????????????## # #####??????????? | | ????????????????????????## ## ######???????????? | | ????????????????????????###### ##????????????? | | ???????????????????????????### ###???????????? | | ???????????????????????????### ####??????????? | | ??????????????????????????#### ###??????????? | | ???????????? ?????????????### ##??????????? | | ????????????